bitfinex-derivatives/quotes_SOLF0:USTF0_20260207
["timestamp","ask_amount","ask_price","bid_price","bid_amount"]
[1770466852114,10.4183,86.471,86.414,73.80937248]
[1770466852926,10.4183,86.471,86.41,1.55997511]
[1770466852927,34.68386848,86.47,86.41,1.55997511]
[1770466853222,2.48983792,86.485,86.41,1.55997511]
[1770466853726,0.86299722,86.499,86.41,75.76154788]
[1770466853925,10.4209,86.45,86.41,7.511e-05]
[1770466854823,10.4222,86.439,86.41,7.511e-05]
[1770466855322,10.4205,86.453,86.41,7.511e-05]
[1770466855923,10.4218,86.442,86.41,7.511e-05]
[1770466856227,34.68386848,86.46,86.41,7.511e-05]
[1770466856524,0.86299722,86.479,86.41,7.511e-05]
[1770466857126,10.4198,86.459,86.41,74.38316614]
[1770466857325,34.68386848,86.48,86.41,74.38316614]
[1770466857625,10.4198,86.459,86.41,74.38316614]
[1770466857830,10.4198,86.459,86.41,7.511e-05]
[1770466858130,34.68386848,86.5,86.41,7.511e-05]
[1770466858434,34.49,86.554,86.41,7.511e-05]
[1770466858435,34.68386848,86.48,86.41,7.511e-05]
[1770466858826,10.4224,86.437,86.41,7.511e-05]
[1770466859031,34.68386848,86.46,86.41,7.511e-05]
[1770466859224,20.8306,86.496,86.41,7.511e-05]
[1770466859426,52.78458508,86.46,86.41,7.511e-05]
[1770466861225,52.78458508,86.44,86.41,7.511e-05]
[1770466861734,10.4231,86.431,86.41,7.511e-05]
[1770466861927,52.78458508,86.48,86.41,7.511e-05]
[1770466862433,52.78458508,86.46,86.41,7.511e-05]
[1770466862828,52.78458508,86.44,86.41,7.511e-05]
[1770466863034,10.4245,86.42,86.41,7.511e-05]
[1770466863235,52.78458508,86.44,86.41,7.511e-05]
[1770466863631,10.4255,86.411,86.41,7.511e-05]
[1770466863834,52.78458508,86.44,86.361,74.85869395]
[1770466865230,52.78458508,86.46,86.361,74.85869395]
[1770466865432,10.4227,86.434,86.363,74.76756802]
[1770466865635,52.78458508,86.46,86.363,74.76756802]
[1770466865934,52.78458508,86.48,86.363,74.76756802]
[1770466866234,10.4198,86.459,86.378,74.76756802]
[1770466866434,10.4198,86.459,86.32,52.78458508]
[1770466866435,52.78458508,86.51,86.391,75.11022187]
[1770466866834,52.78458508,86.51,86.39,52.78458508]
[1770466866835,52.78458508,86.49,86.396,75.11022187]
[1770466867034,52.78458508,86.47,86.396,75.11022187]
[1770466867228,52.78458508,86.49,86.396,75.11022187]
[1770466867433,52.78458508,86.5,86.396,75.11022187]
[1770466867833,52.78458508,86.48,86.396,75.11022187]
[1770466868036,10.4215,86.445,86.396,75.11022187]
[1770466868241,52.78458508,86.48,86.396,75.11022187]
[1770466869134,10.4202,86.456,86.396,75.11022187]
[1770466869342,52.78458508,86.46,86.374,76.05544195]
[1770466869535,10.4218,86.442,86.374,76.05544195]
[1770466869737,52.78458508,86.46,86.374,76.05544195]
[1770466870843,10.4243,86.422,86.374,76.05544195]
[1770466871340,52.78458508,86.44,86.374,76.05544195]
[1770466871532,34.49,86.506,86.321,74.74708585]
[1770466871736,52.78458508,86.46,86.341,74.74708585]
[1770466871937,52.78458508,86.44,86.341,74.74708585]
[1770466872134,10.4271,86.399,86.341,74.74708585]
[1770466872334,52.78458508,86.44,86.341,74.74708585]
[1770466872536,10.4282,86.389,86.341,74.74708585]
[1770466872940,10.4282,86.389,86.3,52.78458508]
[1770466872941,52.78458508,86.4,86.3,52.78458508]
[1770466873247,10.4287,86.385,86.3,52.78458508]
[1770466874543,10.4271,86.398,86.3,52.78458508]
[1770466874745,5.0338541,86.419,86.3,52.78458508]
[1770466874946,5.0338541,86.419,86.307,69.4448842]
[1770466875242,4.0200236,86.399,86.307,69.4448842]
[1770466875446,20.8409,86.453,86.311,69.4448842]
[1770466875447,4.01606496,86.419,86.311,69.4448842]
[1770466875646,10.4301,86.373,86.311,69.4448842]
[1770466875843,4.01606496,86.399,86.311,69.4448842]
[1770466876245,52.78458508,86.4,86.311,69.4448842]
[1770466876648,6.87208503,86.399,86.311,69.4448842]
[1770466877759,10.4301,86.373,86.311,69.4448842]
[1770466877952,6.87208503,86.399,86.311,69.4448842]
[1770466878352,52.78458508,86.38,86.311,69.4448842]
[1770466878755,10.4313,86.364,86.311,69.4448842]
[1770466878953,5.64605972,86.379,86.311,69.4448842]
[1770466879554,20.8474,86.427,86.311,69.4448842]
[1770466879555,5.63174404,86.403,86.311,69.4448842]
[1770466879958,10.4299,86.375,86.311,69.4448842]
[1770466880158,5.37925552,86.389,86.311,69.4448842]
[1770466881462,52.78458508,86.39,86.311,69.4448842]
[1770466881764,52.78458508,86.41,86.311,69.4448842]
[1770466881965,52.78458508,86.41,86.227,10.07700464]
[1770466881966,52.78458508,86.43,86.322,69.4448842]
[1770466882154,3.60298058,86.429,86.322,69.4448842]
[1770466882553,3.60298058,86.429,86.337,69.4448842]
[1770466883156,10.4239,86.425,86.353,69.4448842]
[1770466883756,10.4249,86.416,86.353,69.4448842]
[1770466884364,10.4231,86.432,86.353,69.4448842]
[1770466884564,0.93984689,86.459,86.3,14.36778134]
[1770466884565,14.36778134,86.45,86.361,69.54338529]
[1770466884765,14.36778134,86.45,86.372,69.54338529]
[1770466885662,10.4218,86.443,86.372,69.54338529]
[1770466886058,10.4218,86.443,86.375,10.4298]
[1770466886370,14.36778134,86.46,86.381,69.4448842]
[1770466886870,0.45401942,86.484,86.391,69.4448842]
[1770466887068,14.36778134,86.47,86.391,69.4448842]
[1770466887262,14.36778134,86.49,86.411,69.4448842]
[1770466887462,10.4169,86.483,86.411,69.4448842]
[1770466887661,14.36778134,86.49,86.411,69.4448842]
[1770466889068,3.9370978,86.489,86.411,69.4448842]
[1770466889268,14.36778134,86.47,86.39,69.4448842]
[1770466889476,10.4207,86.451,86.39,69.4448842]
[1770466889674,14.36778134,86.47,86.39,69.4448842]
[1770466889869,14.36778134,86.47,86.39,83.81266554]
[1770466890264,14.36778134,86.47,86.39,69.4448842]
[1770466890473,3.9370978,86.489,86.39,69.4448842]
[1770466890474,14.36778134,86.45,86.39,69.4448842]
[1770466890872,14.36778134,86.43,86.34,14.36778134]
[1770466891066,35.49164809,86.45,86.36,14.36778134]
[1770466891375,10.4227,86.435,86.36,14.36778134]
[1770466891776,20.8886451,86.449,86.34,14.36778134]
[1770466891971,14.36778134,86.43,86.34,14.36778134]
[1770466892173,10.4269,86.408,86.34,14.36778134]
[1770466892370,14.36778134,86.41,86.32,14.36778134]
[1770466892675,14.36778134,86.41,86.306,450.09541296]
[1770466892869,14.36778134,86.37,86.306,450.09541296]
[1770466893071,18.72001123,86.369,86.306,519.54029716]
[1770466893274,18.72001123,86.369,86.306,429.37691296]
[1770466893275,14.36778134,86.35,86.306,429.37691296]
[1770466893474,10.434,86.349,86.306,429.37691296]
[1770466893669,14.36778134,86.35,86.306,407.18821296]
[1770466893870,14.36778134,86.33,86.261,69.4448842]
[1770466894376,10.46647798,86.395,86.203,176.31527372]
[1770466894377,14.36778134,86.36,86.281,69.4448842]
[1770466895076,18.9249512,86.394,86.301,69.4448842]
[1770466895379,14.36778134,86.34,86.279,69.4448842]
[1770466895679,14.36778134,86.34,86.279,51.7333842]
[1770466896577,38.07340345,86.402,86.29,14.36778134]
[1770466896874,38.07340345,86.402,86.265,10.21951258]
[1770466897067,38.07340345,86.402,86.31,14.36778134]
[1770466897576,10.4263,86.413,86.331,65.92205922]
[1770466898176,14.36778134,86.42,86.331,65.92205922]
[1770466898882,14.36778134,86.4,86.333,65.92205922]
[1770466899280,10.4247,86.426,86.341,65.92205922]
[1770466899776,50.54741408,86.43,86.341,65.92205922]
[1770466899977,14.36778134,86.41,86.341,65.92205922]
[1770466900181,50.14973341,86.41,86.341,65.92205922]
[1770466900378,14.36778134,86.39,86.316,65.92205922]
[1770466900582,14.36778134,86.37,86.316,65.92205922]
[1770466901278,14.36778134,86.35,86.289,65.92205922]
[1770466901984,10.4341,86.349,86.289,65.92205922]
[1770466902186,14.36778134,86.33,86.251,65.92205922]
[1770466902586,14.36778134,86.34,86.271,65.92205922]
[1770466904185,10.4359,86.339,86.271,65.92205922]
[1770466904385,14.36778134,86.32,86.241,65.92205922]
[1770466904687,14.36778134,86.32,86.243,65.92205922]
[1770466905086,14.36778134,86.3,86.243,65.92205922]
[1770466905487,14.36778134,86.32,86.251,65.92205922]
[1770466905786,14.36778134,86.34,86.251,65.92205922]
[1770466905990,14.36778134,86.34,86.261,65.92205922]
[1770466906284,14.36778134,86.34,86.2,14.36778134]
[1770466906285,14.36778134,86.3,86.233,65.92205922]
[1770466906484,14.36778134,86.34,86.241,65.92205922]
[1770466906987,14.36778134,86.34,86.265,65.92205922]
[1770466907483,14.36778134,86.32,86.265,65.92205922]
[1770466907883,14.36778134,86.3,86.231,65.92205922]
[1770466908182,47.25735812,86.32,86.231,65.92205922]
[1770466908386,14.36778134,86.3,86.231,65.92205922]
[1770466908882,49.28785842,86.3,86.231,65.92205922]
[1770466909085,14.36778134,86.28,86.231,65.92205922]
[1770466909289,14.36778134,86.28,86.19,14.36778134]
[1770466909290,14.36778134,86.26,86.199,65.92205922]
[1770466909492,14.36778134,86.26,86.18,14.36778134]
[1770466909493,14.36778134,86.28,86.201,65.92205922]
[1770466909884,14.36778134,86.28,86.214,65.92205922]
[1770466910486,14.36778134,86.28,86.153,264.04924682]
[1770466910487,10.4459,86.256,86.192,65.92205922]
[1770466910786,14.36778134,86.26,86.198,67.48203433]
[1770466911185,14.36778134,86.28,86.198,67.48203433]
[1770466912081,14.36778134,86.28,86.21,80.28984056]
[1770466912289,14.36778134,86.28,86.21,65.92205922]
[1770466912587,14.36778134,86.28,86.212,65.92205922]
[1770466913580,48.1615528,86.3,86.216,65.92205922]
[1770466913779,10.4399,86.306,86.216,65.92205922]
[1770466913980,14.36778134,86.35,86.235,10.4484]
[1770466913981,14.36778134,86.31,86.235,10.4484]
[1770466914185,14.36778134,86.31,86.236,65.92205922]
[1770466914580,10.4395,86.309,86.236,65.92205922]
[1770466914783,14.36778134,86.35,86.198,1.55997511]
[1770466914784,14.36778134,86.29,86.214,65.92205922]
[1770466914991,14.36778134,86.27,86.214,65.92205922]
[1770466915186,14.36778134,86.3,86.214,65.92205922]
[1770466915385,14.36778134,86.3,86.221,65.92205922]
[1770466915890,24.80888134,86.3,86.229,65.92205922]
[1770466916798,14.36778134,86.28,86.208,65.92205922]
[1770466917283,14.36778134,86.3,86.231,65.92205922]
[1770466918091,30.46881974,86.288,86.21,80.28984056]
[1770466918286,14.36778134,86.3,86.21,80.28984056]
[1770466918287,14.36778134,86.26,86.21,65.92205922]
[1770466918495,14.36778134,86.26,86.198,1.55997511]
[1770466919097,45.00294312,86.27,86.199,65.92205922]
[1770466919291,10.4459,86.261,86.199,65.92205922]
[1770466919598,14.36778134,86.25,86.199,65.92205922]
[1770466920084,30.63516178,86.27,86.199,65.92205922]
[1770466920290,45.00294312,86.27,86.199,65.92205922]
[1770466920485,45.00294312,86.27,86.198,1.55997511]
[1770466920486,14.36778134,86.25,86.198,1.55997511]
[1770466920689,30.3482005,86.249,86.198,1.55997511]
[1770466920896,30.3482005,86.249,86.198,7.511e-05]
[1770466921085,14.36778134,86.21,86.198,7.511e-05]
[1770466921285,30.14315251,86.25,86.198,7.511e-05]
[1770466921486,14.43644024,86.25,86.198,7.511e-05]
[1770466921691,44.3700029,86.25,86.198,7.511e-05]
[1770466921892,29.93356266,86.249,86.198,7.511e-05]
[1770466922091,14.43644024,86.23,86.198,7.511e-05]
[1770466922297,14.43644024,86.21,86.198,7.511e-05]
[1770466922493,14.43644024,86.21,86.153,329.97130604]
[1770466922988,14.43644024,86.21,86.153,264.04924682]
[1770466923192,28.84381824,86.209,86.153,264.04924682]
[1770466923703,14.43644024,86.19,86.133,65.92205922]
[1770466923902,28.84381824,86.209,86.133,65.92205922]
[1770466924102,28.63995185,86.229,86.141,65.92205922]
[1770466924304,14.43644024,86.21,86.141,65.92205922]
[1770466924600,29.66301977,86.209,86.12,65.92205922]
[1770466924797,14.43644024,86.19,86.12,65.92205922]
[1770466924999,10.4548,86.187,86.12,65.92205922]
[1770466925198,14.43644024,86.19,86.12,65.92205922]
[1770466925695,10.4551,86.185,86.12,65.92205922]
[1770466926002,14.43644024,86.2,86.12,65.92205922]
[1770466926302,14.43644024,86.2,86.031,34.49]
[1770466926303,24.88844024,86.21,86.131,59.34933705]
[1770466926799,29.8048678,86.231,86.151,59.34933705]
[1770466927002,14.43644024,86.25,86.151,59.34933705]
[1770466927503,29.65105035,86.299,86.171,59.34933705]
[1770466927694,14.43644024,86.27,86.191,59.34933705]
[1770466927890,10.4457,86.262,86.191,59.34933705]
[1770466928104,29.46096715,86.269,86.191,59.34933705]
[1770466928105,14.43644024,86.25,86.191,59.34933705]
[1770466928300,14.43644024,86.23,86.122,59.34933705]
[1770466928499,29.43861719,86.229,86.141,59.34933705]
[1770466928696,14.43644024,86.25,86.141,59.34933705]
[1770466928697,29.25034166,86.209,86.141,59.34933705]
[1770466928892,29.25034166,86.209,86.119,59.34933705]
[1770466929092,162.5319,86.24,86.05,35.37904024]
[1770466929093,14.43644024,86.23,86.131,59.34933705]
[1770466929405,14.43644024,86.23,86.1,14.43644024]
[1770466929406,14.43644024,86.23,86.151,59.34933705]
[1770466929591,14.43644024,86.25,86.17,14.43644024]
[1770466929798,14.43644024,86.25,86.171,59.34933705]
[1770466930299,29.24318061,86.261,86.191,62.63594526]
[1770466930599,14.43644024,86.27,86.198,62.63594526]
[1770466930802,14.43644024,86.28,86.201,62.63594526]
[1770466931001,26.74675346,86.283,86.201,62.63594526]
[1770466931196,10.4409,86.302,86.221,62.63594526]
[1770466931400,26.60385297,86.289,86.221,62.63594526]
[1770466931595,10.4428,86.286,86.221,62.63594526]
[1770466931796,26.60385297,86.289,86.221,62.63594526]
[1770466932308,26.42257281,86.287,86.221,62.63594526]
[1770466932504,14.43644024,86.27,86.199,62.63594526]
[1770466932809,14.43644024,86.25,86.199,62.63594526]
[1770466933307,14.43644024,86.25,86.178,62.63594526]
[1770466934103,25.55605593,86.249,86.101,62.63594526]
[1770466934297,14.43644024,86.23,86.151,62.63594526]
[1770466934906,14.43644024,86.21,86.151,62.63594526]
[1770466935098,27.00260678,86.229,86.151,62.63594526]
[1770466935507,14.43644024,86.25,86.155,62.63594526]
[1770466935908,26.8225994,86.249,86.155,62.63594526]
[1770466936103,24.88554024,86.23,86.155,62.63594526]
[1770466936305,14.43644024,86.21,86.155,62.63594526]
[1770466937407,14.43644024,86.21,86.121,62.63594526]
[1770466938208,14.43644024,86.21,86.134,62.63594526]
[1770466938611,10.4504,86.219,86.141,62.63594526]
[1770466939010,14.43644024,86.2,86.141,62.63594526]
[1770466939603,14.43644024,86.22,86.141,62.63594526]
[1770466940203,14.43644024,86.25,86.141,62.63594526]
[1770466940204,14.43644024,86.2,86.141,62.63594526]
[1770466940513,14.43644024,86.2,86.111,62.63594526]
[1770466940514,25.70246909,86.199,86.111,62.63594526]
[1770466940713,10.4531,86.197,86.121,62.63594526]
[1770466941010,14.43644024,86.21,86.121,62.63594526]
[1770466941412,24.88784024,86.21,86.123,62.63594526]
[1770466941807,24.88784024,86.21,86.127,10.4614]
[1770466942003,10.4528,86.199,86.128,62.63594526]
[1770466942207,14.43644024,86.21,86.131,62.63594526]
[1770466942605,24.88794024,86.21,86.131,62.63594526]
[1770466943406,25.98895223,86.22,86.133,62.63594526]
[1770466943611,14.43644024,86.24,86.151,62.63594526]
[1770466943815,14.43644024,86.26,86.171,62.63594526]
[1770466944012,10.4466,86.25,86.173,62.63594526]
[1770466944316,14.43644024,86.26,86.173,62.63594526]
[1770466944507,10.4437,86.274,86.191,62.63594526]
[1770466944710,14.43644024,86.26,86.191,62.63594526]
[1770466944910,24.9798804,86.259,86.17,62.63594526]
[1770466945307,10.4481,86.238,86.17,62.63594526]
[1770466945507,14.43644024,86.25,86.17,62.63594526]
[1770466946610,25.29014393,86.247,86.17,62.63594526]
[1770466946816,14.43644024,86.23,86.17,62.63594526]
[1770466947116,14.43644024,86.25,86.17,62.63594526]
[1770466947710,10.4484,86.236,86.17,62.63594526]
[1770466948314,35.41853169,86.247,86.17,62.63594526]
[1770466948510,24.97153169,86.247,86.17,62.63594526]
[1770466948817,14.43644024,86.22,86.17,62.63594526]
[1770466949210,10.4505,86.218,86.17,62.63594526]
[1770466949414,14.43644024,86.24,86.17,62.63594526]
[1770466949816,10.4492,86.229,86.17,62.63594526]
[1770466950012,14.43644024,86.22,86.141,62.63594526]
[1770466950524,14.43644024,86.2,86.141,62.63594526]
[1770466950722,39.10776026,86.22,86.141,62.63594526]
[1770466951211,14.43644024,86.22,86.145,62.63594526]
[1770466951417,14.43644024,86.24,86.145,62.63594526]
[1770466951911,24.51955713,86.242,86.161,62.63594526]
[1770466952320,14.43644024,86.23,86.161,62.63594526]
[1770466953013,14.43644024,86.25,86.161,62.63594526]
[1770466953219,14.43644024,86.2,86.141,62.63594526]
[1770466953520,10.4528,86.199,86.141,62.63594526]
[1770466953916,14.43644024,86.18,86.12,62.63594526]
[1770466954513,24.82452115,86.179,86.101,10.4646]
[1770466954726,35.27972115,86.179,86.103,10.4644]
[1770466954929,35.27972115,86.179,86.103,73.10034526]
[1770466955223,14.43644024,86.16,86.103,62.63594526]
[1770466955616,14.43644024,86.2,86.07,14.43644024]
[1770466955617,14.43644024,86.14,86.071,73.10424526]
[1770466956221,14.43644024,86.14,86.071,62.63594526]
[1770466956732,24.01241552,86.149,86.071,62.63594526]
[1770466957122,162.6057,86.196,86.06,14.43644024]
[1770466957123,14.43644024,86.17,86.081,58.38463361]
[1770466957441,14.43644024,86.17,86.101,58.38463361]
[1770466960231,24.01241552,86.177,86.101,58.38463361]
[1770466960428,14.43644024,86.17,86.06,62.0]
[1770466960624,24.5405972,86.169,86.081,58.38463361]
[1770466960830,14.43644024,86.15,86.081,58.38463361]
[1770466961135,24.5405972,86.169,86.091,58.38463361]
[1770466961326,24.39712638,86.192,86.101,58.38463361]
[1770466961532,10.455,86.181,86.101,58.38463361]
[1770466961731,14.43644024,86.18,86.101,58.38463361]
[1770466961921,10.4554,86.178,86.101,58.38463361]
[1770466962324,24.26086482,86.159,86.06,14.43644024]
[1770466962529,24.26086482,86.159,86.061,58.38463361]
[1770466962729,14.43644024,86.14,86.061,58.38463361]
[1770466962932,24.26086482,86.159,86.061,58.38463361]
[1770466963331,34.31383242,86.183,86.101,58.38463361]
[1770466963632,23.59268868,86.183,86.101,58.38463361]
[1770466963830,10.72114374,86.196,86.101,58.38463361]
[1770466964037,23.45356285,86.189,86.101,58.38463361]
[1770466964235,10.4579,86.157,86.101,58.38463361]
[1770466964539,21.0793571,86.179,86.101,58.38463361]
[1770466965039,20.94672528,86.169,86.101,58.38463361]
[1770466965236,10.4578,86.158,86.101,58.38463361]
[1770466965431,20.94672528,86.169,86.101,58.38463361]
[1770466965836,14.43644024,86.15,86.08,58.38463361]
[1770466966237,14.43644024,86.17,86.08,72.82107385]
[1770466966541,20.81259172,86.189,86.101,58.38463361]
[1770466967842,20.81259172,86.189,86.105,58.38463361]
[1770466968027,14.43644024,86.19,86.111,58.38463361]
[1770466968229,10.4559,86.174,86.111,58.38463361]
[1770466968438,14.43644024,86.19,86.111,58.38463361]
[1770466968739,14.43644024,86.19,86.11,14.43644024]
[1770466968740,10.75597543,86.218,86.151,58.38463361]
[1770466968942,21.28436205,86.24,86.153,58.38463361]
[1770466968943,14.43644024,86.24,86.153,58.38463361]
[1770466969143,31.59561679,86.239,86.153,58.38463361]
[1770466970140,14.43644024,86.22,86.153,58.38463361]
[1770466970732,10.4507,86.217,86.153,58.38463361]
[1770466970941,31.59561679,86.239,86.157,58.38463361]
[1770466971841,14.43644024,86.26,86.171,58.38463361]
[1770466972037,14.43644024,86.27,86.191,58.38463361]
[1770466973149,10.4447,86.266,86.191,58.38463361]
[1770466974139,10.4429,86.281,86.193,58.38463361]
[1770466974341,14.43644024,86.3,86.211,58.38463361]
[1770466974536,28.60787318,86.299,86.211,58.38463361]
[1770466974731,10.4427,86.283,86.211,58.38463361]
[1770466974935,14.43644024,86.26,86.19,58.38463361]
[1770466975437,14.43644024,86.24,86.17,72.82107385]
[1770466975746,14.43644024,86.24,86.17,58.38463361]
[1770466976333,14.43644024,86.27,86.17,72.82107385]
[1770466976542,14.43644024,86.27,86.191,58.38463361]
[1770466977050,37.07972598,86.28,86.191,58.38463361]
[1770466977243,14.43644024,86.27,86.191,58.38463361]
[1770466977640,14.43644024,86.27,86.15,14.43644024]
[1770466977641,14.43644024,86.29,86.211,58.38463361]
[1770466977944,40.97937125,86.3,86.211,58.38463361]
[1770466978643,26.54293101,86.3,86.216,58.38463361]
[1770466979247,27.56175283,86.306,86.231,58.38463361]
[1770466979453,14.43644024,86.3,86.231,58.38463361]
[1770466979742,14.43644024,86.32,86.231,58.38463361]
[1770466980537,27.56183149,86.326,86.231,58.38463361]
[1770466981139,10.4381,86.321,86.235,58.38463361]
[1770466981540,10.4365,86.334,86.253,58.38463361]
[1770466981745,14.43644024,86.3,86.234,58.38463361]
[1770466982143,14.43644024,86.28,86.201,58.38463361]
[1770466982547,27.41518029,86.279,86.201,58.38463361]
[1770466982736,14.43644024,86.28,86.201,58.38463361]
[1770466982942,27.32481284,86.298,86.201,58.38463361]
[1770466983137,14.43644024,86.3,86.221,58.38463361]
[1770466983342,14.43644024,86.3,86.224,58.38463361]
[1770466983551,14.41074632,86.31,86.224,58.38463361]
[1770466983739,27.23513976,86.309,86.224,58.38463361]
[1770466983942,10.4438,86.274,86.224,58.38463361]
[1770466984246,14.41074632,86.29,86.224,58.38463361]
[1770466984848,27.23513976,86.308,86.224,58.38463361]
[1770466985048,27.0040954,86.289,86.207,58.38463361]
[1770466985247,14.41074632,86.25,86.187,58.38463361]
[1770466985954,10.4468,86.248,86.187,58.38463361]
[1770466986153,14.41074632,86.25,86.187,58.38463361]
[1770466986545,10.4467,86.249,86.187,58.38463361]
[1770466986949,14.41074632,86.25,86.187,58.38463361]
[1770466989046,14.41074632,86.23,86.167,59.49780002]
[1770466989447,14.41074632,86.25,86.167,59.49780002]
[1770466989648,10.4473,86.245,86.171,59.49780002]
[1770466990255,14.41074632,86.23,86.171,59.49780002]
[1770466990457,14.41074632,86.25,86.171,59.49780002]
[1770466990849,40.51737239,86.23,86.141,58.33367069]
[1770466991253,14.41074632,86.21,86.141,58.33367069]
[1770466991454,10.4538,86.191,86.141,58.33367069]
[1770466991849,10.4525,86.201,86.141,58.33367069]
[1770466992454,10.4525,86.201,86.057,10.37028548]
[1770466992455,10.4553,86.178,86.101,58.33367069]
[1770466992661,20.8957,86.24,86.101,58.33367069]
[1770466992662,14.41074632,86.17,86.101,58.33367069]
[1770466992856,14.41074632,86.15,86.101,58.33367069]
[1770466993654,10.459,86.148,86.08,58.33367069]
[1770466993847,39.04167798,86.148,86.08,58.33367069]
[1770466994052,24.86834632,86.16,86.08,58.33367069]
[1770466994253,14.41074632,86.16,86.08,58.33367069]
[1770466995153,26.94535527,86.159,86.088,58.33367069]
[1770466995662,14.41074632,86.14,86.073,58.33367069]
[1770466995856,14.41074632,86.16,86.073,58.33367069]
[1770466996453,14.41074632,86.17,86.091,58.33367069]
[1770466997150,14.41074632,86.17,86.11,58.33367069]
[1770466997356,41.33018415,86.17,86.11,58.33367069]
[1770466997566,14.41074632,86.15,86.09,58.33367069]
[1770466997857,10.459,86.148,86.09,58.33367069]
[1770466998361,10.4607,86.134,86.09,58.33367069]
[1770466998567,26.8401041,86.149,86.09,58.33367069]
[1770466999356,26.8401041,86.149,86.061,58.33367069]
[1770466999558,14.41074632,86.13,86.061,58.33367069]
[1770467001368,10.4613,86.129,86.061,58.33367069]
[1770467001564,14.41074632,86.13,86.062,10.4694]
[1770467001770,14.41074632,86.13,86.063,58.33367069]
[1770467003270,10.4616,86.126,86.063,58.33367069]
[1770467003472,14.41074632,86.13,86.063,58.33367069]
[1770467004667,10.4618,86.125,86.063,58.33367069]
[1770467005171,41.43409293,86.13,86.063,58.33367069]
[1770467005674,14.41074632,86.13,86.063,58.33367069]
[1770467005972,26.87235571,86.129,86.063,58.33367069]
[1770467007672,10.4618,86.125,86.063,58.33367069]
[1770467008174,26.23719898,86.124,86.043,58.33367069]
[1770467008377,10.462,86.123,86.046,58.33367069]
[1770467008571,26.23719898,86.124,86.046,58.33367069]
[1770467008967,26.23719898,86.124,86.046,68.80497069]
[1770467009970,10.462,86.123,86.046,68.80497069]
[1770467010376,10.462,86.123,86.054,58.33367069]
[1770467011772,10.4634,86.112,86.054,58.33367069]
[1770467012166,26.50874601,86.129,86.054,58.33367069]
[1770467012167,14.41074632,86.11,86.054,58.33367069]
[1770467013880,10.4617,86.126,86.054,58.33367069]
[1770467015381,10.4627,86.118,86.054,58.33367069]
[1770467017782,10.4641,86.106,86.054,58.33367069]
[1770467018383,14.41074632,86.11,86.054,58.33367069]
[1770467018384,10.4629,86.116,86.054,58.33367069]
[1770467020582,10.4639,86.108,86.054,58.33367069]
[1770467021991,26.05232349,86.112,86.054,58.33367069]
[1770467022189,10.4628,86.117,86.054,58.33367069]
[1770467024188,10.4637,86.109,86.054,58.33367069]
[1770467025486,25.64449801,86.106,86.054,58.33367069]
[1770467026484,26.43630223,86.093,86.032,57.45510196]
[1770467026692,26.43630223,86.11,86.032,57.45510196]
[1770467026893,14.41074632,86.12,86.032,57.45510196]
[1770467027193,26.37244828,86.148,86.071,57.45510196]
[1770467027584,10.4593,86.145,86.071,67.92340196]
[1770467028282,26.37244828,86.148,86.071,67.92340196]
[1770467028893,14.41074632,86.16,86.071,57.45510196]
[1770467028894,36.98943923,86.147,86.071,57.45510196]
[1770467029089,26.53033923,86.179,86.091,57.45510196]
[1770467029690,14.41074632,86.19,86.111,57.45510196]
[1770467029886,26.46630033,86.197,86.111,57.45510196]
[1770467030091,26.46630033,86.197,86.131,57.45510196]
[1770467030782,26.09202355,86.184,86.074,57.45510196]
[1770467030984,26.09202355,86.167,86.081,57.45510196]
[1770467031184,26.09202355,86.167,86.101,57.45510196]
[1770467031389,26.09202355,86.166,86.101,57.45510196]
[1770467032088,14.41074632,86.16,86.101,57.45510196]
[1770467032694,26.70774716,86.159,86.101,57.45510196]
[1770467032892,26.70774716,86.159,86.078,57.45510196]
[1770467033089,26.64649704,86.139,86.078,57.45510196]
[1770467033490,26.64484194,86.159,86.078,57.45510196]
[1770467033692,10.4592,86.146,86.078,57.45510196]
[1770467034494,26.64484194,86.159,86.078,57.45510196]
[1770467035201,10.4584,86.153,86.078,57.45510196]
[1770467035896,10.4598,86.142,86.078,57.45510196]
[1770467036698,10.4582,86.155,86.078,57.45510196]
[1770467037402,10.4596,86.143,86.078,57.45510196]
[1770467038699,24.68979764,86.154,86.078,57.45510196]
[1770467038906,14.41074632,86.14,86.078,57.45510196]
[1770467039805,10.461,86.131,86.078,57.45510196]
[1770467040302,10.70260781,86.134,86.078,57.45510196]
[1770467040496,10.4597,86.142,86.078,57.45510196]
[1770467041301,10.70260781,86.152,86.078,57.45510196]
[1770467041500,21.51429183,86.175,86.05,14.41074632]
[1770467041501,10.70260781,86.171,86.091,57.45510196]
[1770467041697,23.23734155,86.174,86.091,57.45510196]
[1770467042109,21.15890781,86.171,86.095,57.45510196]
[1770467042408,10.70260781,86.171,86.095,57.45510196]
[1770467042605,33.42796651,86.171,86.095,57.45510196]
[1770467042805,22.7253587,86.171,86.095,57.45510196]
[1770467043503,22.66812447,86.159,86.095,57.45510196]
[1770467043703,22.61135409,86.171,86.095,57.45510196]
[1770467043907,22.61135409,86.159,86.095,57.45510196]
[1770467044306,10.70260781,86.172,86.095,57.45510196]